[Event "32nd Panamerican Youth 2022"]
[Site "Montevideo"]
[Date "2022.06.27"]
[Round "2.7"]
[White "Azocar Gajardo, Javiera"]
[Black "Carvajal Mendoza, Maria Belen"]
[Result "0-1"]
[ECO "B06"]
[WhiteElo "1245"]
[BlackElo "1377"]
[Annotator "NA RC"]
[PlyCount "84"]
[EventDate "2022.06.26"]
[EventType "swiss"]
[EventCountry "URU"]
[SourceTitle "playchess.com"]
[Source "ChessBase"]
[SourceQuality "1"]
[TimeControl "5400+30"]

1. e4 {[%emt 0:00:03]} g6 {[%emt 0:00:09]} 2. h4 {[%emt 0:00:23]} Bg7 {[%emt 0:00:17]} 3. Bc4 {[%emt 0:00:32]} c5 {[%emt 0:02:11]} 4. Qf3 {[%emt 0:01:26]} e6 {[%emt 0:02:54]} 5. h5 {[%emt 0:03:29]} Nc6 {[%emt 0:08:38]} 6. hxg6 hxg6 7. Rxh8 {[%emt 0:09:47]} Bxh8 {[%emt 0:03:39]} 8. Qf4 {[%emt 0:02:03]} a6 {[%emt 0:06:33]} 9. a3 {[%emt 0:00:50]} b5 {[%emt 0:00:29]} 10. Ba2 {[%emt 0:01:49]} c4 {[%emt 0:01:22]} 11. Nf3 {[%emt 0:03:38]} Nd4 {[%emt 0:07:07]} 12. Nxd4 {[%emt 0:01:02]} Bxd4 {[%emt 0:00:04]} 13. Qf3 {[%emt 0:02:33]} Qh4 {[%emt 0:01:35]} 14. g3 {[%emt 0:02:19]} Qh2 {[%emt 0:01:47]} 15. Ke2 {[%emt 0:03:03]} Bb7 {[%emt 0:03:10]} 16. Nc3 {[%emt 0:02:10]} Nf6 {[%emt 0:03:12]} 17. Qf4 {[%emt 0:11:14]} g5 {[%emt 0:06:36]} 18. Qf3 {[%emt 0:00:52]} g4 {[%emt 0:01:50]} 19. Qf4 {[%emt 0:02:04]} Nh5 {[%emt 0:00:11]} 20. Qe3 {[%emt 0:06:47]} Bxe3 21. Kxe3 {[%emt 0:00:07]} Qh1 {[%emt 0:00:37]} 22. Ke2 {[%emt 0:01:23]} Qf3+ {[%emt 0:00:19]} 23. Ke1 {[%emt 0:00:23]} Nxg3 {[%emt 0:00:12]} 24. fxg3 {[%emt 0:01:09]} Qxg3+ {[%emt 0:00:02]} 25. Ke2 {[%emt 0:00:58]} Qf3+ {[%emt 0:00:10]} 26. Ke1 {[%emt 0:00:27]} g3 {[%emt 0:00:02]} 27. d3 {[%emt 0:00:45]} g2 {[%emt 0:00:07]} 28. Ne2 {[%emt 0:00:07]} O-O-O {[%emt 0:00:39]} 29. Bg5 {[%emt 0:01:06]} Rh8 {[%emt 0:00:18]} 30. Kd2 {[%emt 0:00:41]} Qf2 {[%emt 0:00:25]} 31. Be3 {[%emt 0:00:27]} Qf3 {[%emt 0:00:29]} 32. Ng1 {[%emt 0:00:59]} Qf1 {[%emt 0:00:22]} 33. Re1 {[%emt 0:00:33]} Qf6 {[%emt 0:00:49]} 34. c3 {[%emt 0:00:20]} Rh4 {[%emt 0:01:10]} 35. Re2 {[%emt 0:00:30]} cxd3 {[%emt 0:00:39]} 36. Rxg2 {[%emt 0:00:30]} Qf1 {[%emt 0:00:43]} 37. Rg8+ {[%emt 0:01:24]} Kc7 {[%emt 0:00:03]} 38. Rg3 {[%emt 0:01:06]} Rh2+ {[%emt 0:00:14]} 39. Bf2 {[%emt 0:01:21]} Rxf2+ {[%emt 0:00:08]} 40. Ke3 {[%emt 0:00:16]} Qe1+ {[%emt 0:00:35]} 41. Kd4 {[%emt 0:01:10]} Qxe4+ {[%emt 0:00:24]} 42. Kc5 {[%emt 0:02:33]} d6# {[%emt 0:00:03]} 0-1

[Event "32nd Panamerican Youth 2022"]
[Site "Montevideo"]
[Date "2022.06.27"]
[Round "2.8"]
[White "El Hage Serrano, Caely"]
[Black "Quintela, Sol"]
[Result "1-0"]
[ECO "C44"]
[WhiteElo "1308"]
[BlackElo "1062"]
[Annotator "NA RC"]
[PlyCount "69"]
[EventDate "2022.06.26"]
[EventType "swiss"]
[EventCountry "URU"]
[SourceTitle "playchess.com"]
[Source "ChessBase"]
[SourceQuality "1"]
[TimeControl "5400+30"]

1. e4 e5 2. Nf3 Nc6 3. c3 Nf6 {[%emt 0:01:10]} 4. Be2 {[%emt 0:10:50]} Ng8 {[%emt 0:00:08]} 5. Bf1 {[%emt 0:00:00]} d6 {[%emt 0:00:39]} 6. d3 {[%emt 0:00:00]} Nf6 {[%emt 0:00:17]} 7. Be2 {[%emt 0:00:00]} Be7 {[%emt 0:00:21]} 8. Nbd2 {[%emt 0:00:00]} O-O {[%emt 0:00:09]} 9. O-O {[%emt 0:00:00]} Bd7 {[%emt 0:00:23]} 10. Re1 {[%emt 0:00:00]} Qc8 {[%emt 0:00:09]} 11. Nf1 {[%emt 0:00:00]} Bg4 {[%emt 0:03:54]} 12. Ne3 {[%emt 0:00:00]} Nh5 {[%emt 0:05:12]} 13. Nxg4 {[%emt 0:00:00]} Nf4 14. Bxf4 {[%emt 0:00:00]} exf4 {[%emt 0:05:32]} 15. h3 {[%emt 0:00:00]} Rd8 16. Qd2 {[%emt 0:01:54]} Ne5 {[%emt 0:16:23]} 17. Qxf4 {[%emt 0:00:45]} Ng6 {[%emt 0:01:06]} 18. Qf5 {[%emt 0:00:59]} d5 {[%emt 0:02:23]} 19. Qxc8 {[%emt 0:00:47]} Raxc8 {[%emt 0:00:09]} 20. exd5 {[%emt 0:00:12]} Rxd5 {[%emt 0:00:14]} 21. d4 {[%emt 0:00:11]} Nf4 {[%emt 0:01:40]} 22. Bc4 {[%emt 0:00:10]} Rd7 {[%emt 0:00:36]} 23. Nfe5 {[%emt 0:00:12]} Rdd8 {[%emt 0:06:16]} 24. Nxf7 {[%emt 0:00:15]} Rf8 {[%emt 0:01:30]} 25. Rxe7 {[%emt 0:00:19]} Ng6 {[%emt 0:00:37]} 26. Nfe5+ {[%emt 0:01:17]} Kh8 {[%emt 0:00:26]} 27. Nxg6+ {[%emt 0:00:07]} hxg6 {[%emt 0:00:26]} 28. Rae1 {[%emt 0:00:09]} Kh7 {[%emt 0:04:17]} 29. Rd7 {[%emt 0:00:30]} Rfe8 {[%emt 0:00:50]} 30. Nf6+ {[%emt 0:00:09]} Kh6 {[%emt 0:00:29]} 31. Nxe8 {[%emt 0:00:07]} g5 {[%emt 0:00:55]} 32. Nxg7 {[%emt 0:00:26]} Rh8 {[%emt 0:01:07]} 33. Re6+ {[%emt 0:00:10]} Kh7 {[%emt 0:00:39]} 34. Nf5+ {[%emt 0:00:10]} Kg8 {[%emt 0:00:32]} 35. Rf6# {[%emt 0:00:27]} 1-0

[Event "32nd Panamerican Youth 2022"]
[Site "Montevideo"]
[Date "2022.06.27"]
[Round "2.13"]
[White "Wilson, Hannah"]
[Black "Adam, Ernestina"]
[Result "0-1"]
[ECO "B90"]
[WhiteElo "1492"]
[BlackElo "1681"]
[Annotator "NA RC"]
[PlyCount "126"]
[EventDate "2022.06.26"]
[EventType "swiss"]
[EventCountry "URU"]
[SourceTitle "playchess.com"]
[Source "ChessBase"]
[SourceQuality "1"]
[TimeControl "5400+30"]

1. e4 {[%emt 0:00:18]} c5 {[%emt 0:00:38]} 2. Nf3 {[%emt 0:00:21]} d6 {[%emt 0:00:07]} 3. d4 {[%emt 0:00:26]} cxd4 4. Nxd4 {[%emt 0:00:34]} Nf6 {[%emt 0:01:06]} 5. Nc3 {[%emt 0:00:29]} a6 {[%emt 0:00:42]} 6. Be3 {[%emt 0:00:51]} e5 {[%emt 0:01:11]} 7. Nb3 {[%emt 0:00:45]} Be6 {[%emt 0:01:20]} 8. h3 {[%emt 0:01:03]} h5 {[%emt 0:03:08]} 9. Qf3 {[%emt 0:06:24]} Nbd7 {[%emt 0:06:03]} 10. O-O-O {[%emt 0:01:36]} b5 {[%emt 0:03:31]} 11. Kb1 {[%emt 0:02:18]} Qc7 {[%emt 0:04:31]} 12. g3 {[%emt 0:15:48]} b4 {[%emt 0:07:14]} 13. Nd5 {[%emt 0:13:20]} Bxd5 {[%emt 0:02:06]} 14. exd5 {[%emt 0:00:55]} a5 {[%emt 0:20:55]} 15. Nd2 {[%emt 0:04:10]} Rb8 {[%emt 0:04:09]} 16. Qg2 {[%emt 0:10:46]} a4 {[%emt 0:11:57]} 17. Bc4 {[%emt 0:04:44]} Nc5 {[%emt 0:06:59]} 18. Qf1 {[%emt 0:06:32]} Qa5 {[%emt 0:03:03]} 19. Qe2 {[%emt 0:05:35]} Nfe4 {[%emt 0:09:42]} 20. Nxe4 {[%emt 0:05:49]} Nxe4 {[%emt 0:00:07]} 21. Bd4 {[%emt 0:01:08]} f5 {[%emt 0:03:03]} 22. g4 {[%emt 0:09:38]} hxg4 {[%emt 0:01:32]} 23. hxg4 {[%emt 0:01:41]} Rxh1 {[%emt 0:00:00]} 24. Rxh1 {[%emt 0:01:50]} b3 {[%emt 0:00:32]} 25. c3 {[%emt 0:01:57]} bxa2+ {[%emt 0:00:32]} 26. Kxa2 {[%emt 0:00:33]} a3 {[%emt 0:01:56]} 27. b4 {[%emt 0:01:07]} Qc7 {[%emt 0:04:18]} 28. gxf5 {[%emt 0:00:41]} Nf6 {[%emt 0:00:56]} 29. f4 {[%emt 0:01:15]} Nd7 {[%emt 0:01:59]} 30. Re1 {[%emt 0:00:49]} Be7 {[%emt 0:00:48]} 31. fxe5 {[%emt 0:01:25]} Nxe5 {[%emt 0:00:31]} 32. Bxe5 {[%emt 0:00:27]} dxe5 {[%emt 0:00:04]} 33. Qh5+ {[%emt 0:00:24]} Kd7 {[%emt 0:00:46]} 34. Re4 {[%emt 0:00:42]} Rb6 {[%emt 0:00:57]} 35. Qg4 {[%emt 0:00:27]} Bf6 {[%emt 0:00:32]} 36. Qh5 {[%emt 0:00:36]} Ke7 {[%emt 0:00:43]} 37. Qg4 {[%emt 0:00:56]} Rd6 {[%emt 0:00:45]} 38. Re1 {[%emt 0:00:25]} Rd8 {[%emt 0:00:31]} 39. Rh1 {[%emt 0:00:28]} Rc8 {[%emt 0:00:17]} 40. Bb3 {[%emt 0:00:39]} Qxc3 {[%emt 0:00:20]} 41. Rh2 {[%emt 0:00:23]} Qe1 {[%emt 0:00:39]} 42. Qd1 {[%emt 0:00:25]} Qxd1 {[%emt 0:00:44]} 43. Bxd1 {[%emt 0:00:04]} Rc1 {[%emt 0:00:27]} 44. Bb3 {[%emt 0:00:17]} e4 {[%emt 0:00:26]} 45. Kxa3 {[%emt 0:00:13]} Ra1+ {[%emt 0:00:29]} 46. Ba2 {[%emt 0:00:10]} e3 {[%emt 0:00:34]} 47. Re2 {[%emt 0:00:26]} Bd4 {[%emt 0:00:16]} 48. Ka4 {[%emt 0:00:57]} Kd7 {[%emt 0:00:48]} 49. Kb5 {[%emt 0:00:14]} Rc1 {[%emt 0:00:23]} 50. Bc4 {[%emt 0:00:20]} Rb1 {[%emt 0:00:33]} 51. Bd3 {[%emt 0:01:05]} Rc1 {[%emt 0:00:29]} 52. Ra2 {[%emt 0:00:54]} Rc3 {[%emt 0:00:33]} 53. Be2 {[%emt 0:00:23]} Rc8 {[%emt 0:00:26]} 54. Ka5 {[%emt 0:00:56]} Kd6 {[%emt 0:00:33]} 55. Bd3 {[%emt 0:00:43]} Kxd5 {[%emt 0:00:14]} 56. Re2 {[%emt 0:00:32]} Rc3 {[%emt 0:00:21]} 57. Bb1 {[%emt 0:00:35]} Rc1 {[%emt 0:00:59]} 58. Bc2 {[%emt 0:00:30]} Kc4 {[%emt 0:00:22]} 59. b5 {[%emt 0:00:21]} Ra1+ {[%emt 0:00:26]} 60. Ba4 {[%emt 0:00:08]} Kd3 {[%emt 0:00:07]} 61. Rh2 {[%emt 0:00:52]} e2 {[%emt 0:00:18]} 62. Rh3+ {[%emt 0:00:32]} Kc4 {[%emt 0:00:13]} 63. Rh2 {[%emt 0:00:32]} e1=Q+ {[%emt 0:00:12]} 0-1

[Event "32nd Panamerican Youth 2022"]
[Site "Montevideo"]
[Date "2022.06.27"]
[Round "2.14"]
[White "Norabuena Ticona, Gabriela Paola"]
[Black "Chen, Rachel Ruoxuan"]
[Result "0-1"]
[ECO "A09"]
[WhiteElo "1410"]
[BlackElo "1618"]
[Annotator "NA RC"]
[PlyCount "78"]
[EventDate "2022.06.26"]
[EventType "swiss"]
[EventCountry "URU"]
[SourceTitle "playchess.com"]
[Source "ChessBase"]
[SourceQuality "1"]
[TimeControl "5400+30"]

1. Nf3 {[%emt 0:00:13]} d5 {[%emt 0:00:04]} 2. c4 {[%emt 0:01:03]} d4 {[%emt 0:00:51]} 3. e3 {[%emt 0:00:24]} c5 {[%emt 0:02:04]} 4. b4 {[%emt 0:08:34]} Bg4 {[%emt 0:16:45]} 5. bxc5 {[%emt 0:22:46]} Nc6 {[%emt 0:06:08]} 6. h3 {[%emt 0:17:28]} Bxf3 {[%emt 0:02:15]} 7. Qxf3 {[%emt 0:00:56]} e5 {[%emt 0:02:43]} 8. Ba3 {[%emt 0:08:40]} Nf6 {[%emt 0:02:31]} 9. Bd3 {[%emt 0:08:57]} Be7 {[%emt 0:24:18]} 10. O-O {[%emt 0:05:02]} O-O {[%emt 0:00:20]} 11. Re1 {[%emt 0:07:23]} Re8 {[%emt 0:05:55]} 12. exd4 {[%emt 0:12:40]} exd4 {[%emt 0:00:02]} 13. Qf5 {[%emt 0:01:10]} Bf8 {[%emt 0:02:09]} 14. Kf1 {[%emt 0:01:28]} Qc7 {[%emt 0:03:00]} 15. g3 {[%emt 0:00:32]} Ne5 {[%emt 0:05:51]} 16. Be2 {[%emt 0:00:39]} Qc6 {[%emt 0:00:33]} 17. f3 {[%emt 0:00:28]} g6 {[%emt 0:00:35]} 18. Qf4 {[%emt 0:00:33]} Nh5 {[%emt 0:00:14]} 19. Qg5 {[%emt 0:00:33]} Nxf3 {[%emt 0:00:25]} 20. Qd5 {[%emt 0:00:28]} Qxd5 {[%emt 0:01:16]} 21. cxd5 {[%emt 0:00:02]} Nxg3+ {[%emt 0:00:19]} 22. Kf2 {[%emt 0:00:15]} Nxe1 {[%emt 0:00:05]} 23. Bb5 {[%emt 0:00:43]} Nc2 {[%emt 0:01:35]} 24. Bxe8 {[%emt 0:00:40]} Ne4+ {[%emt 0:00:06]} 25. Kf3 {[%emt 0:00:27]} Rxe8 26. Bb2 {[%emt 0:00:30]} Nxa1 {[%emt 0:00:15]} 27. Bxa1 Bxc5 {[%emt 0:00:09]} 28. d3 {[%emt 0:00:48]} Ng5+ {[%emt 0:00:48]} 29. Kg4 {[%emt 0:00:19]} Re1 {[%emt 0:00:30]} 30. Kxg5 {[%emt 0:01:09]} Rxb1 {[%emt 0:00:03]} 31. d6 {[%emt 0:00:35]} Rxa1 {[%emt 0:00:11]} 32. d7 {[%emt 0:00:08]} Be7+ {[%emt 0:00:05]} 33. Kf4 {[%emt 0:00:11]} Re1 {[%emt 0:00:09]} 34. a4 {[%emt 0:00:17]} Bd8 {[%emt 0:00:06]} 35. Kg4 {[%emt 0:00:30]} Re3 {[%emt 0:00:14]} 36. Kf4 {[%emt 0:00:28]} Kg7 {[%emt 0:00:10]} 37. h4 {[%emt 0:00:16]} Bc7+ {[%emt 0:00:08]} 38. Kg4 {[%emt 0:00:18]} f5+ {[%emt 0:00:03]} 39. Kg5 {[%emt 0:00:17]} h6# {[%emt 0:00:02]} 0-1

[Event "32nd Panamerican Youth 2022"]
[Site "Montevideo"]
[Date "2022.06.27"]
[Round "2.17"]
[White "Montevilla Cahuasa, Jonathan I."]
[Black "Ticona Rocabado, Licael Roderick"]
[Result "0-1"]
[ECO "C10"]
[WhiteElo "1684"]
[BlackElo "2097"]
[Annotator "NA RC"]
[PlyCount "94"]
[EventDate "2022.06.26"]
[EventType "swiss"]
[EventCountry "URU"]
[SourceTitle "playchess.com"]
[Source "ChessBase"]
[SourceQuality "1"]
[TimeControl "5400+30"]

1. e4 e6 2. d4 d5 3. Nc3 dxe4 4. Nxe4 Nd7 5. Nf3 Ngf6 6. Bd3 c5 7. Be3 cxd4 8. Bxd4 Be7 9. O-O O-O 10. b3 Qc7 11. Qe2 Nd5 12. Neg5 N7f6 13. Be5 Bd6 14. Bxd6 Qxd6 15. Ne4 Qe7 16. Nxf6+ Nxf6 17. Rfe1 b6 18. Rad1 Bb7 19. c4 Rad8 20. Bc2 Qa3 21. Nd4 Qc5 22. Qe5 Qa3 23. Qe2 Qa5 24. Qd2 Qc5 25. Qc3 a5 26. Nb5 Qc6 27. Qh3 h6 28. Nd4 Qc5 29. Qc3 Ng4 30. Qd3 g6 31. Rxe6 Qh5 32. Qg3 fxe6 33. Nxe6 Rxd1+ 34. Bxd1 Qe5 35. Qxe5 Nxe5 36. Nxf8 Kxf8 37. Be2 Be4 38. a3 Bd3 39. Bd1 a4 40. bxa4 Nxc4 41. f4 Nxa3 42. Kf2 Bc2 43. a5 bxa5 44. Bf3 a4 45. Ke2 Nb1 46. Bg4 Bb3 47. f5 a3 0-1

[Event "32nd Panamerican Youth 2022"]
[Site "Montevideo"]
[Date "2022.06.27"]
[Round "2.18"]
[White "Zacarias Rodriguez, Santiago"]
[Black "Caceres Sandoval, Eduardo"]
[Result "1-0"]
[ECO "B85"]
[WhiteElo "2069"]
[BlackElo "1751"]
[Annotator "NA RC"]
[PlyCount "55"]
[EventDate "2022.06.26"]
[EventType "swiss"]
[EventCountry "URU"]
[SourceTitle "playchess.com"]
[Source "ChessBase"]
[SourceQuality "1"]
[TimeControl "5400+30"]

1. e4 {[%emt 0:00:04]} c5 {[%emt 0:00:12]} 2. Nf3 {[%emt 0:00:08]} d6 {[%emt 0:00:12]} 3. d4 cxd4 {[%emt 0:00:12]} 4. Nxd4 {[%emt 0:00:23]} Nf6 {[%emt 0:00:15]} 5. Nc3 {[%emt 0:00:08]} a6 {[%emt 0:00:14]} 6. Be2 {[%emt 0:00:07]} e6 {[%emt 0:00:17]} 7. Be3 {[%emt 0:04:14]} Be7 {[%emt 0:02:43]} 8. f4 {[%emt 0:02:01]} Nc6 {[%emt 0:02:59]} 9. O-O {[%emt 0:01:31]} O-O {[%emt 0:00:22]} 10. Qe1 {[%emt 0:02:24]} Qc7 {[%emt 0:01:18]} 11. Qg3 {[%emt 0:02:57]} Nxd4 {[%emt 0:01:28]} 12. Bxd4 {[%emt 0:00:06]} b5 {[%emt 0:00:28]} 13. Bf3 {[%emt 0:13:39]} Bb7 {[%emt 0:01:23]} 14. a3 {[%emt 0:01:12]} Rad8 {[%emt 0:02:54]} 15. Kh1 {[%emt 0:04:14]} g6 {[%emt 0:01:37]} 16. f5 {[%emt 0:12:24]} e5 {[%emt 0:00:26]} 17. Be3 {[%emt 0:01:21]} Qc4 {[%emt 0:03:34]} 18. Bg5 {[%emt 0:02:28]} Kg7 {[%emt 0:19:48]} 19. Qh4 {[%emt 0:02:39]} h5 20. Bxh5 {[%emt 0:08:54]} gxh5 {[%emt 0:19:54]} 21. Rf3 {[%emt 0:00:08]} Rg8 {[%emt 0:09:47]} 22. Bxf6+ {[%emt 0:00:51]} Bxf6 {[%emt 0:00:14]} 23. Rg3+ {[%emt 0:00:03]} Kf8 {[%emt 0:00:06]} 24. Qxf6 {[%emt 0:00:07]} Qc7 {[%emt 0:00:15]} 25. Rxg8+ {[%emt 0:06:01]} Kxg8 {[%emt 0:00:10]} 26. Qh6 {[%emt 0:02:18]} Qe7 {[%emt 0:01:40]} 27. f6 {[%emt 0:00:31]} Qf8 {[%emt 0:00:10]} 28. Qg5+ {[%emt 0:00:17]} 1-0

[Event "32nd Panamerican Youth 2022"]
[Site "Montevideo"]
[Date "2022.06.27"]
[Round "2.19"]
[White "Sloan, Jed"]
[Black "Claure Verastegui, Rene David"]
[Result "1-0"]
[ECO "C00"]
[WhiteElo "1974"]
[BlackElo "1586"]
[Annotator "NA RC"]
[PlyCount "74"]
[EventDate "2022.06.26"]
[EventType "swiss"]
[EventCountry "URU"]
[SourceTitle "playchess.com"]
[Source "ChessBase"]
[SourceQuality "1"]
[TimeControl "5400+30"]

1. e4 {[%emt 0:00:01]} e6 {[%emt 0:00:03]} 2. d3 {[%emt 0:00:31]} d5 {[%emt 0:00:02]} 3. Qe2 {[%emt 0:00:10]} c5 {[%emt 0:02:06]} 4. g3 {[%emt 0:03:17]} Nc6 {[%emt 0:00:14]} 5. Nf3 {[%emt 0:00:24]} dxe4 6. dxe4 {[%emt 0:01:10]} g6 {[%emt 0:04:27]} 7. Bg2 {[%emt 0:01:48]} Bg7 {[%emt 0:01:10]} 8. O-O {[%emt 0:01:06]} Nge7 {[%emt 0:00:31]} 9. c3 {[%emt 0:03:24]} O-O {[%emt 0:00:40]} 10. e5 {[%emt 0:08:38]} Qc7 {[%emt 0:02:47]} 11. Re1 {[%emt 0:00:31]} b6 {[%emt 0:01:32]} 12. h4 {[%emt 0:07:00]} Bb7 {[%emt 0:07:15]} 13. h5 {[%emt 0:01:11]} Rad8 {[%emt 0:03:33]} 14. Bg5 {[%emt 0:05:17]} Qd7 {[%emt 0:06:25]} 15. Nbd2 {[%emt 0:07:57]} Qd3 {[%emt 0:03:48]} 16. hxg6 {[%emt 0:05:24]} hxg6 {[%emt 0:15:54]} 17. Qd1 {[%emt 0:09:27]} Qf5 {[%emt 0:12:13]} 18. Qc1 {[%emt 0:07:28]} Rd7 {[%emt 0:11:51]} 19. Nc4 {[%emt 0:05:07]} Na5 {[%emt 0:06:09]} 20. Nd6 {[%emt 0:05:09]} Qg4 21. Nh2 {[%emt 0:07:25]} Qh5 {[%emt 0:06:30]} 22. g4 {[%emt 0:03:12]} Qh7 {[%emt 0:00:05]} 23. Re3 {[%emt 0:00:28]} Bxe5 {[%emt 0:07:39]} 24. Rxe5 {[%emt 0:00:20]} f6 {[%emt 0:01:05]} 25. Rxe6 {[%emt 0:02:28]} Bxg2 {[%emt 0:01:11]} 26. Kxg2 {[%emt 0:02:25]} fxg5 {[%emt 0:00:07]} 27. Qc2 {[%emt 0:05:20]} Nd5 {[%emt 0:02:03]} 28. Kh1 {[%emt 0:05:20]} Nf4 {[%emt 0:00:13]} 29. Rae1 {[%emt 0:01:39]} Qh3 {[%emt 0:01:39]} 30. Qe4 {[%emt 0:00:49]} Rh7 {[%emt 0:00:50]} 31. Rxg6+ {[%emt 0:00:15]} Nxg6 {[%emt 0:00:06]} 32. Qxg6+ {[%emt 0:00:15]} Kh8 {[%emt 0:00:30]} 33. Nf7+ {[%emt 0:00:44]} Rhxf7 {[%emt 0:00:04]} 34. Re3 {[%emt 0:01:01]} Qh7 {[%emt 0:00:28]} 35. Qxg5 {[%emt 0:00:06]} Qb1+ {[%emt 0:01:01]} 36. Kg2 {[%emt 0:00:03]} Rxf2+ {[%emt 0:00:21]} 37. Kh3 {[%emt 0:00:16]} Qh7+ {[%emt 0:00:31]} 1-0

[Event "32nd Panamerican Youth 2022"]
[Site "Montevideo"]
[Date "2022.06.27"]
[Round "2.20"]
[White "Lavandeira, Juan Facundo"]
[Black "Handsztok, Matias"]
[Result "1-0"]
[ECO "A30"]
[WhiteElo "1676"]
[BlackElo "1868"]
[Annotator "NA RC"]
[PlyCount "126"]
[EventDate "2022.06.26"]
[EventType "swiss"]
[EventCountry "URU"]
[SourceTitle "playchess.com"]
[Source "ChessBase"]
[SourceQuality "1"]
[TimeControl "5400+30"]

1. c4 {[%emt 0:00:42]} c5 {[%emt 0:00:43]} 2. g3 {[%emt 0:00:49]} g6 {[%emt 0:00:51]} 3. Bg2 {[%emt 0:00:26]} Bg7 {[%emt 0:00:21]} 4. Nc3 {[%emt 0:01:09]} d6 {[%emt 0:01:50]} 5. e4 {[%emt 0:01:37]} Nc6 {[%emt 0:00:46]} 6. Nge2 {[%emt 0:01:42]} e6 {[%emt 0:04:49]} 7. d3 {[%emt 0:04:21]} Nge7 {[%emt 0:00:51]} 8. O-O {[%emt 0:00:38]} O-O {[%emt 0:01:02]} 9. Be3 {[%emt 0:02:39]} Nd4 {[%emt 0:01:19]} 10. Qd2 {[%emt 0:03:59]} a6 {[%emt 0:03:53]} 11. Bh6 {[%emt 0:23:12]} Rb8 {[%emt 0:04:36]} 12. Bxg7 {[%emt 0:06:16]} Kxg7 {[%emt 0:00:12]} 13. f4 {[%emt 0:08:18]} Nec6 {[%emt 0:06:26]} 14. Nxd4 Nxd4 {[%emt 0:02:03]} 15. Ne2 {[%emt 0:11:11]} f5 {[%emt 0:05:39]} 16. Nxd4 cxd4 {[%emt 0:00:09]} 17. Rae1 {[%emt 0:08:38]} b5 {[%emt 0:03:40]} 18. e5 {[%emt 0:06:48]} dxe5 {[%emt 0:00:26]} 19. Rxe5 {[%emt 0:00:24]} bxc4 {[%emt 0:00:22]} 20. dxc4 {[%emt 0:00:57]} d3 {[%emt 0:00:45]} 21. b3 {[%emt 0:01:32]} Qd4+ {[%emt 0:00:20]} 22. Qf2 {[%emt 0:03:48]} Qd7 {[%emt 0:02:32]} 23. Rd1 {[%emt 0:00:46]} Rd8 {[%emt 0:04:09]} 24. Re3 {[%emt 0:00:34]} Qc7 {[%emt 0:05:33]} 25. Rexd3 {[%emt 0:01:09]} Rxd3 {[%emt 0:00:15]} 26. Rxd3 {[%emt 0:00:01]} a5 {[%emt 0:00:37]} 27. Qd4+ {[%emt 0:00:33]} Kh6 {[%emt 0:02:57]} 28. h3 {[%emt 0:03:06]} Bb7 {[%emt 0:04:26]} 29. g4 {[%emt 0:00:49]} Bxg2 {[%emt 0:01:32]} 30. Kxg2 {[%emt 0:00:24]} Qc6+ {[%emt 0:00:22]} 31. Kh2 {[%emt 0:00:29]} Qe4 {[%emt 0:02:19]} 32. g5+ {[%emt 0:00:39]} Kh5 {[%emt 0:00:07]} 33. Qxe4 {[%emt 0:00:07]} fxe4 {[%emt 0:00:07]} 34. Rd7 {[%emt 0:00:16]} Rh8 {[%emt 0:00:07]} 35. Re7 {[%emt 0:00:55]} h6 {[%emt 0:00:14]} 36. gxh6 {[%emt 0:01:00]} Kxh6 {[%emt 0:00:14]} 37. Rxe6 {[%emt 0:00:06]} Rd8 {[%emt 0:00:13]} 38. Rxe4 {[%emt 0:00:07]} Rd2+ {[%emt 0:00:08]} 39. Kg3 {[%emt 0:00:13]} Rxa2 {[%emt 0:00:06]} 40. Re3 {[%emt 0:00:25]} Kg7 {[%emt 0:00:53]} 41. Rc3 {[%emt 0:00:13]} Ra3 {[%emt 0:02:42]} 42. Rf3 {[%emt 0:01:14]} Ra1 {[%emt 0:01:04]} 43. Re3 {[%emt 0:00:52]} Kf6 {[%emt 0:01:26]} 44. Kf3 {[%emt 0:00:18]} Rc1 {[%emt 0:06:15]} 45. Ke4 {[%emt 0:02:54]} a4 {[%emt 0:00:19]} 46. Kd5 {[%emt 0:00:04]} a3 {[%emt 0:00:11]} 47. Re6+ {[%emt 0:00:10]} Kf5 {[%emt 0:00:18]} 48. Ra6 {[%emt 0:00:07]} Ra1 {[%emt 0:08:08]} 49. b4 {[%emt 0:01:27]} a2 {[%emt 0:00:12]} 50. Kc5 {[%emt 0:00:03]} Kxf4 {[%emt 0:00:24]} 51. b5 {[%emt 0:00:20]} Ke4 {[%emt 0:00:56]} 52. Ra3 {[%emt 0:00:36]} Ke5 {[%emt 0:01:02]} 53. Re3+ {[%emt 0:02:34]} Kf4 {[%emt 0:00:15]} 54. Re2 {[%emt 0:00:13]} Kg3 {[%emt 0:01:57]} 55. b6 {[%emt 0:00:26]} Kxh3 {[%emt 0:00:10]} 56. Rb2 {[%emt 0:00:33]} g5 {[%emt 0:01:08]} 57. b7 {[%emt 0:02:47]} Rb1 {[%emt 0:00:06]} 58. b8=Q {[%emt 0:00:12]} a1=Q {[%emt 0:00:09]} 59. Rxb1 {[%emt 0:00:27]} Qa3+ {[%emt 0:00:30]} 60. Qb4 {[%emt 0:00:54]} Qa7+ {[%emt 0:00:08]} 61. Qb6 {[%emt 0:00:22]} Qe7+ {[%emt 0:00:25]} 62. Kb5 {[%emt 0:01:07]} Qd7+ {[%emt 0:00:30]} 63. Ka5 {[%emt 0:00:30]} Qd4 1-0